fUSD/lending_fUSD_20250213
["ID","MTS","AMOUNT","RATE_DAILY","PERIOD"]
[352973993,1739470236621,-254.286352,0.00013698,2]
[352973995,1739470236631,-500.0,0.00013698,2]
[352973997,1739470236640,-500.0,0.00013698,2]
[352973999,1739470236649,-1756.7,0.00013698,2]
[352974001,1739470236659,-500.0,0.00013698,2]
[352974003,1739470236669,-3710.96,0.00013698,2]
[352974005,1739470236680,-621.57,0.00013698,2]
[352974008,1739470236689,-500.0,0.00013698,2]
[352974010,1739470236699,-547.91,0.00013698,2]
[352974012,1739470236708,-2131.02,0.00013698,2]
[352974014,1739470236717,-500.0,0.00013698,2]
[352974016,1739470236727,-1549.17,0.00013698,2]
[352974018,1739470236737,-500.0,0.00013698,2]
[352974020,1739470236746,-823.11,0.00013698,2]
[352974022,1739470236756,-500.0,0.00013698,2]
[352974024,1739470236766,-500.0,0.00013698,2]
[352974026,1739470236775,-153.4736478,0.00013698,2]
[352974028,1739470236784,-500.0,0.00013698,2]
[352974030,1739470236794,-1161.07,0.00013698,2]
[352974032,1739470236803,-1005.4,0.00013698,2]
[352974034,1739470236814,-671.24,0.00013698,2]
[352974036,1739470236826,-2244.64,0.00013698,2]
[352974038,1739470236836,-500.0,0.00013698,2]
[352974040,1739470236846,-329.79296731,0.00013698,2]
[352974042,1739470236856,-500.0,0.00013698,2]
[352974044,1739470236865,-1114.31,0.00013698,2]
[352974046,1739470236875,-511.7267196,0.00013698,2]
[352974048,1739470236884,-500.0,0.00013698,2]
[352974050,1739470236895,-2980.911846,0.00013698,2]
[352974052,1739470236904,-500.0,0.00013698,2]
[352974054,1739470236914,-2980.911846,0.00013698,2]
[352974056,1739470236923,-2980.911846,0.00013698,2]
[352974058,1739470236935,-392.04457854,0.00013698,2]
[352974060,1739470236944,-2980.911846,0.00013698,2]
[352974062,1739470236954,-2980.911846,0.00013698,2]
[352974064,1739470236965,-500.0,0.00013698,2]
[352974066,1739470236975,-2980.911846,0.00013698,2]
[352974068,1739470236984,-1627.66,0.00013698,2]
[352974070,1739470236994,-500.0,0.00013698,2]
[352974072,1739470237003,-500.0,0.00013698,2]
[352974074,1739470237012,-151.0,0.00013698,2]
[352974076,1739470237022,-151.0,0.00013698,2]
[352974078,1739470237031,-577.45,0.00013698,2]
[352974080,1739470237041,-151.0,0.00013698,2]
[352974082,1739470237051,-500.0,0.00013698,2]
[352974084,1739470237060,-151.0,0.00013698,2]
[352974086,1739470237070,-151.0,0.00013698,2]
[352974088,1739470237080,-151.0,0.00013698,2]
[352974090,1739470237089,-503.04734901,0.00013698,2]
[352974092,1739470237099,-500.0,0.00013698,2]
[352974094,1739470237108,-500.0,0.00013698,2]
[352974096,1739470237117,-990.76,0.00013698,2]
[352974098,1739470237127,-500.0,0.00013698,2]
[352974100,1739470237136,-500.0,0.00013698,2]
[352974102,1739470237145,-500.0,0.00013698,2]
[352974104,1739470237154,-500.0,0.00013698,2]
[352974106,1739470237164,-500.0,0.00013698,2]
[352974107,1739470237173,-500.0,0.00013698,2]
[352974110,1739470237184,-500.0,0.00013698,2]
[352974112,1739470237195,-542.09,0.00013698,2]
[352974114,1739470237205,-844.89,0.00013698,2]
[352974116,1739470237215,-500.0,0.00013698,2]
[352974119,1739470237224,-500.0,0.00013698,2]
[352974123,1739470237235,-500.0,0.00013698,2]
[352974125,1739470237244,-500.0,0.00013698,2]
[352974127,1739470237253,-500.0,0.00013698,2]
[352974129,1739470237263,-500.0,0.00013698,2]
[352974131,1739470237273,-500.0,0.00013698,2]
[352974134,1739470237282,-500.0,0.00013698,2]
[352974137,1739470237291,-500.0,0.00013698,2]
[352974140,1739470237301,-500.0,0.00013698,2]
[352974143,1739470237310,-1775.87,0.00013698,2]
[352974146,1739470237319,-500.0,0.00013698,2]
[352974149,1739470237329,-500.0,0.00013698,2]
[352974154,1739470237340,-896.87,0.00013698,2]
[352974157,1739470237351,-500.0,0.00013698,2]
[352974159,1739470237360,-500.0,0.00013698,2]
[352974161,1739470237370,-500.0,0.00013698,2]
[352974163,1739470237380,-500.0,0.00013698,2]
[352974165,1739470237391,-500.0,0.00013698,2]
[352974167,1739470237400,-500.0,0.00013698,2]
[352974169,1739470237409,-500.0,0.00013698,2]
[352974171,1739470237418,-500.0,0.00013698,2]
[352974173,1739470237428,-500.0,0.00013698,2]
[352974175,1739470237437,-500.0,0.00013698,2]
[352974177,1739470237447,-500.0,0.00013698,2]
[352974179,1739470237456,-500.0,0.00013698,2]
[352974181,1739470237466,-795.66,0.00013698,2]
[352974183,1739470237476,-3136.22,0.00013698,2]
[352974185,1739470237486,-500.0,0.00013698,2]
[352974187,1739470237496,-156.582562,0.00013698,2]
[352974189,1739470237505,-156.582562,0.00013698,2]
[352974191,1739470237515,-156.582562,0.00013698,2]
[352974193,1739470237524,-500.0,0.00013698,2]
[352974195,1739470237535,-500.0,0.00013698,2]
[352974197,1739470237544,-710.54,0.00013698,2]
[352974199,1739470237553,-500.0,0.00013698,2]
[352974201,1739470237563,-500.0,0.00013698,2]
[352974203,1739470237572,-797.53,0.00013698,2]
[352974205,1739470237581,-1016.75,0.00013698,2]
[352974207,1739470237591,-749.77,0.00013698,2]
[352974209,1739470237600,-571.05531489,0.00013698,2]
[352974211,1739470237610,-500.0,0.00013698,2]
[352974213,1739470237619,-500.0,0.00013698,2]
[352974215,1739470237628,-151.0,0.00013698,2]
[352974216,1739470237638,-267.75291448,0.00013698,2]
[352974219,1739470237647,-500.0,0.00013698,2]
[352974220,1739470237657,-781.12,0.00013698,2]
[352974222,1739470237666,-500.0,0.00013698,2]
[352974224,1739470237676,-668.24,0.00013698,2]
[352974227,1739470237687,-815.71,0.00013698,2]
[352974228,1739470237696,-1527.28,0.00013698,2]
[352974230,1739470237706,-505.86641007,0.00013698,2]
[352974233,1739470237716,-667.19,0.00013698,2]
[352974236,1739470237725,-1039.22,0.00013698,2]
[352974239,1739470237735,-500.0,0.00013698,2]
[352974242,1739470237744,-1824.8,0.00013698,2]
[352974245,1739470237753,-500.0,0.00013698,2]
[352974247,1739470237762,-500.0,0.00013698,2]
[352974249,1739470237771,-1468.98,0.00013698,2]
[352974250,1739470237781,-500.0,0.00013698,2]
[352974252,1739470237790,-500.0,0.00013698,2]
[352974254,1739470237801,-500.0,0.00013698,2]
[352974256,1739470237812,-762.2,0.00013698,2]
[352974259,1739470237824,-522.88071928,0.00013698,2]
[352974261,1739470237834,-500.0,0.00013698,2]
[352974263,1739470237843,-537.06924038,0.00013698,2]
[352974265,1739470237853,-500.0,0.00013698,2]
[352974267,1739470237863,-529.7,0.00013698,2]
[352974268,1739470237872,-500.0,0.00013698,2]
[352974271,1739470237881,-500.0,0.00013698,2]
[352974272,1739470237893,-500.0,0.00013698,2]
[352974275,1739470237902,-500.0,0.00013698,2]
[352974277,1739470237912,-500.0,0.00013698,2]
[352974278,1739470237921,-1694.68,0.00013698,2]
[352974281,1739470237931,-500.0,0.00013698,2]
[352974283,1739470237941,-2801.89,0.00013698,2]
[352974285,1739470237951,-503.20894019,0.00013698,2]
[352974286,1739470237961,-500.0,0.00013698,2]
[352974289,1739470237970,-500.0,0.00013698,2]
[352974291,1739470237980,-714.16,0.00013698,2]
[352974293,1739470237990,-500.0,0.00013698,2]
[352974295,1739470237999,-1753.59,0.00013698,2]
[352974296,1739470238009,-2147.87,0.00013698,2]
[352974298,1739470238018,-500.0,0.00013698,2]
[352974300,1739470238027,-500.0,0.00013698,2]
[352974303,1739470238038,-1379.58,0.00013698,2]
[352974305,1739470238047,-500.0,0.00013698,2]
[352974307,1739470238056,-1853.23,0.00013698,2]
[352974309,1739470238066,-500.0,0.00013698,2]
[352974310,1739470238075,-500.0,0.00013698,2]
[352974312,1739470238084,-500.0,0.00013698,2]
[352974314,1739470238094,-545.25,0.00013698,2]
[352974316,1739470238104,-2286.01,0.00013698,2]
[352974318,1739470238113,-500.0,0.00013698,2]
[352974320,1739470238123,-1065.8,0.00013698,2]
[352974322,1739470238132,-500.0,0.00013698,2]
[352974324,1739470238142,-500.0,0.00013698,2]
[352974326,1739470238152,-500.0,0.00013698,2]
[352974328,1739470238162,-500.0,0.00013698,2]
[352974330,1739470238172,-500.0,0.00013698,2]
[352974332,1739470238181,-910.13,0.00013698,2]
[352974334,1739470238191,-1422.34,0.00013698,2]
[352974336,1739470238200,-1915.71,0.00013698,2]
[352974338,1739470238210,-500.0,0.00013698,2]
[352974340,1739470238219,-500.0,0.00013698,2]
[352974342,1739470238228,-500.36825461,0.00013698,2]
[352974344,1739470238238,-606.09661134,0.00013698,2]
[352974346,1739470238247,-507.7,0.00013698,2]
[352974348,1739470238256,-500.0,0.00013698,2]
[352974350,1739470238266,-520.84371153,0.00013698,2]
[352974352,1739470238275,-500.0,0.00013698,2]
[352974354,1739470238285,-515.584086,0.00013698,2]
[352974356,1739470238294,-515.584086,0.00013698,2]
[352974358,1739470238303,-500.0,0.00013698,2]
[352974360,1739470238313,-515.584086,0.00013698,2]
[352974362,1739470238323,-500.0,0.00013698,2]
[352974364,1739470238332,-3101.66,0.00013698,2]
[352974366,1739470238341,-2317.78,0.00013698,2]
[352974368,1739470238351,-500.0,0.00013698,2]
[352974370,1739470238360,-515.584086,0.00013698,2]
[352974372,1739470238370,-515.584086,0.00013698,2]
[352974374,1739470238379,-1837.43,0.00013698,2]
[352974376,1739470238389,-515.584086,0.00013698,2]
[352974378,1739470238399,-500.0,0.00013698,2]
[352974380,1739470238409,-2267.77,0.00013698,2]
[352974382,1739470238418,-500.0,0.00013698,2]
[352974384,1739470238427,-504.47868631,0.00013698,2]
[352974386,1739470238438,-500.0,0.00013698,2]
[352974388,1739470238448,-500.0,0.00013698,2]
[352974390,1739470238457,-1659.253781,0.00013698,2]
[352974391,1739470238466,-500.0,0.00013698,2]
[352974393,1739470238476,-1659.253781,0.00013698,2]
[352974396,1739470238486,-1896.31,0.00013698,2]
[352974398,1739470238495,-1659.253781,0.00013698,2]
[352974400,1739470238506,-500.0,0.00013698,2]
[352974402,1739470238516,-1686.5,0.00013698,2]
[352974403,1739470238526,-151.0,0.00013698,2]
[352974405,1739470238535,-151.0,0.00013698,2]
[352974407,1739470238545,-151.0,0.00013698,2]
[352974409,1739470238555,-1659.253781,0.00013698,2]
[352974412,1739470238564,-652.77,0.00013698,2]
[352974413,1739470238574,-1659.253781,0.00013698,2]
[352974415,1739470238583,-1669.45,0.00013698,2]
[352974418,1739470238593,-1659.253781,0.00013698,2]
[352974420,1739470238603,-510.14798419,0.00013698,2]
[352974421,1739470238612,-500.0,0.00013698,2]
[352974424,1739470238622,-500.0,0.00013698,2]
[352974425,1739470238631,-1466.25,0.00013698,2]
[352974428,1739470238641,-500.0,0.00013698,2]
[352974429,1739470238650,-2171.84,0.00013698,2]
[352974431,1739470238659,-500.0,0.00013698,2]
[352974433,1739470238669,-500.0,0.00013698,2]
[352974436,1739470238679,-500.0,0.00013698,2]
[352974437,1739470238688,-500.0,0.00013698,2]
[352974453,1739470238833,-500.0,0.00013698,2]
[352974455,1739470238843,-1418.33,0.00013698,2]
[352974457,1739470238852,-1059.13,0.00013698,2]
[352974459,1739470238862,-500.0,0.00013698,2]
[352974461,1739470238871,-500.0,0.00013698,2]
[352974463,1739470238881,-2692.39,0.00013698,2]
[352974465,1739470238890,-500.0,0.00013698,2]
[352974467,1739470238900,-2042.46,0.00013698,2]
[352974469,1739470238909,-1533.0,0.00013698,2]
[352974471,1739470238918,-500.0,0.00013698,2]
[352974473,1739470238927,-500.0,0.00013698,2]
[352974475,1739470238937,-500.0,0.00013698,2]
[352974477,1739470238947,-1333.18,0.00013698,2]
[352974479,1739470238956,-1085.98,0.00013698,2]
[352974481,1739470238965,-500.0,0.00013698,2]
[352974483,1739470238975,-500.0,0.00013698,2]
[352974485,1739470238984,-500.0,0.00013698,2]
[352974487,1739470238994,-500.0,0.00013698,2]
[352974489,1739470239003,-1011.62,0.00013698,2]
[352974491,1739470239012,-500.0,0.00013698,2]
[352974493,1739470239021,-500.0,0.00013698,2]
[352974495,1739470239031,-319.50317279,0.00013698,2]
[352974497,1739470239040,-608.64,0.00013698,2]
[352974499,1739470239049,-500.0,0.00013698,2]
[352974501,1739470239059,-2800.01,0.00013698,2]
[352974503,1739470239068,-500.0,0.00013698,2]
[352974505,1739470239077,-500.0,0.00013698,7]
[352974507,1739470239087,-763.67,0.00013698,2]
[352974509,1739470239096,-500.0,0.00013698,2]
[352974511,1739470239105,-846.41,0.00013698,2]
[352974512,1739470239115,-505.32338928,0.00013698,2]
[352974513,1739470239124,-497.00472466,0.00013698,2]
[352974514,1739470239133,-1414.93,0.00013698,2]
[352974515,1739470239142,-500.0,0.00013698,2]
[352974516,1739470239152,-500.0,0.00013698,2]
[352974517,1739470239161,-500.0,0.00013698,2]
[352974518,1739470239170,-255.436521,0.00013698,2]
[352974519,1739470239181,-255.436521,0.00013698,2]
[352974520,1739470239190,-505.59214003,0.00013698,2]
[352974521,1739470239200,-255.436521,0.00013698,2]
[352974522,1739470239209,-500.0,0.00013698,2]
[352974523,1739470239219,-151.0,0.00013698,2]
[352974525,1739470239229,-151.0,0.00013698,2]
[352974526,1739470239239,-151.0,0.00013698,2]
[352974528,1739470239248,-511.55030465,0.00013698,2]
[352974530,1739470239258,-804.82,0.00013698,2]
[352974533,1739470239267,-151.0,0.00013698,2]
[352974536,1739470239277,-255.436521,0.00013698,2]
[352974538,1739470239287,-500.0,0.00013698,2]
[352974541,1739470239296,-500.0,0.00013698,2]
[352974544,1739470239305,-151.0,0.00013698,2]
[352974546,1739470239315,-255.436521,0.00013698,2]
[352974548,1739470239326,-151.0,0.00013698,2]
[352974550,1739470239335,-255.436521,0.00013698,2]
[352974552,1739470239345,-500.0,0.00013698,2]
[352974554,1739470239355,-264.566189,0.00013698,2]
[352974556,1739470239365,-921.8,0.00013698,2]
[352974558,1739470239374,-500.0,0.00013698,2]
[352974560,1739470239384,-3969.58,0.00013698,2]
[352974562,1739470239394,-732.65,0.00013698,2]
[352974564,1739470239403,-500.0,0.00013698,2]
[352974566,1739470239413,-500.0,0.00013698,2]
[352974568,1739470239422,-500.0,0.00013698,2]
[352974570,1739470239432,-939.63,0.00013698,2]
[352974572,1739470239443,-500.0,0.00013698,2]
[352974574,1739470239452,-1182.83,0.00013698,2]
[352974576,1739470239462,-500.0,0.00013698,2]
[352974578,1739470239471,-1595.07,0.00013698,2]
[352974580,1739470239480,-500.0,0.00013698,2]
[352974582,1739470239490,-500.0,0.00013698,2]
[352974584,1739470239499,-528.54198702,0.00013698,2]
[352974586,1739470239509,-500.0,0.00013698,2]
[352974588,1739470239520,-207.88821115,0.00013698,2]
[352974590,1739470239530,-500.0,0.00013698,2]
[352974592,1739470239539,-500.0,0.00013698,2]
[352974594,1739470239548,-500.0,0.00013698,2]
[352974596,1739470239558,-500.0,0.00013698,2]
[352974598,1739470239567,-503.77587726,0.00013698,2]
[352974599,1739470239578,-500.0,0.00013698,2]
[352974601,1739470239588,-500.0,0.00013698,2]
[352974604,1739470239598,-2180.04,0.00013698,2]
[352974606,1739470239608,-1298.33,0.00013698,2]
[352974608,1739470239619,-1104.4,0.00013698,2]
[352974609,1739470239629,-500.0,0.00013698,2]
[352974612,1739470239638,-1436.04,0.00013698,2]
[352974613,1739470239647,-500.0,0.00013698,2]
[352974615,1739470239657,-500.0,0.00013698,2]
[352974617,1739470239667,-500.0,0.00013698,2]
[352974619,1739470239676,-1293.88,0.00013698,2]
[352974621,1739470239687,-452.78128819,0.00013698,2]
[352974623,1739470239696,-500.0,0.00013698,2]
[352974625,1739470239705,-1109.38,0.00013698,2]
[352974627,1739470239715,-1846.58,0.00013698,2]
[352974630,1739470239724,-505.42637789,0.00013698,2]
[352974631,1739470239734,-626.73,0.00013698,2]
[352974633,1739470239743,-500.0,0.00013698,2]
[352974636,1739470239753,-500.0,0.00013698,2]
[352974637,1739470239763,-397.017767,0.00013698,2]
[352974639,1739470239772,-397.017767,0.00013698,2]
[352974642,1739470239782,-397.017767,0.00013698,2]
[352974644,1739470239791,-500.0,0.00013698,2]
[352974646,1739470239801,-500.0,0.00013698,2]
[352974647,1739470239810,-509.25140828,0.00013698,2]
[352974650,1739470239822,-500.0,0.00013698,2]
[352974651,1739470239832,-685.14,0.00013698,2]
[352974654,1739470239843,-1848.28,0.00013698,2]
[352974656,1739470239852,-500.0,0.00013698,2]
[352974658,1739470239862,-500.0,0.00013698,2]
[352974659,1739470239871,-397.017767,0.00013698,2]
[352974661,1739470239880,-397.017767,0.00013698,2]
[352974663,1739470239889,-1514.13,0.00013698,2]
[352974665,1739470239900,-397.017767,0.00013698,2]
[352974667,1739470239910,-500.0,0.00013698,2]
[352974669,1739470239919,-1238.08,0.00013698,2]
[352974671,1739470239929,-790.58,0.00013698,2]
[352974673,1739470239938,-500.0,0.00013698,2]
[352974675,1739470239947,-500.0,0.00013698,2]
[352974677,1739470239957,-1355.31,0.00013698,2]
[352974679,1739470239967,-500.0,0.00013698,2]
[352974681,1739470239976,-956.1,0.00013698,2]
[352974683,1739470239985,-404.21888376,0.00013698,2]
[352974685,1739470239994,-500.0,0.00013698,2]
[352974687,1739470240003,-569.03,0.00013698,2]
[352974689,1739470240013,-501.61710069,0.00013698,2]
[352974691,1739470240022,-1895.8,0.00013698,2]
[352974693,1739470240031,-500.0,0.00013698,2]
[352974695,1739470240040,-647.01,0.00013698,2]
[352974697,1739470240049,-1513.01,0.00013698,2]
[352974699,1739470240059,-500.0,0.00013698,2]
[352974701,1739470240068,-500.0,0.00013698,2]
[352974703,1739470240077,-505.92954318,0.00013698,2]
[352974705,1739470240087,-500.0,0.00013698,2]
[352974707,1739470240096,-500.0,0.00013698,2]
[352974709,1739470240105,-500.0,0.00013698,2]
[352974711,1739470240114,-500.0,0.00013698,2]
[352974713,1739470240124,-2056.78,0.00013698,2]
[352974715,1739470240134,-500.0,0.00013698,2]
[352974717,1739470240143,-456.49652863,0.00013698,2]
[352974719,1739470240153,-500.0,0.00013698,2]
[352974721,1739470240162,-500.0,0.00013698,2]
[352974723,1739470240171,-1130.68,0.00013698,2]
[352974725,1739470240180,-500.0,0.00013698,2]
[352974727,1739470240190,-663.29,0.00013698,2]
[352974729,1739470240199,-532.79,0.00013698,2]
[352974731,1739470240210,-500.0,0.00013698,2]
[352974733,1739470240219,-500.0,0.00013698,2]
[352974735,1739470240229,-500.0,0.00013698,2]
[352974737,1739470240238,-500.0,0.00013698,2]
[352974739,1739470240247,-500.0,0.00013698,2]
[352974741,1739470240256,-2159.68,0.00013698,2]
[352974743,1739470240265,-500.0,0.00013698,2]
[352974745,1739470240275,-500.0,0.00013698,2]
[352974747,1739470240284,-500.0,0.00013698,2]
[352974749,1739470240293,-1175.86,0.00013698,2]
[352974751,1739470240302,-500.0,0.00013698,2]
[352974753,1739470240311,-500.0,0.00013698,2]
[352974755,1739470240320,-458.22,0.00013698,2]
[352974757,1739470240330,-500.0,0.00013698,2]
[352974759,1739470240339,-2278.99,0.00013698,2]
[352974761,1739470240349,-500.0,0.00013698,2]
[352974763,1739470240358,-500.0,0.00013698,2]
[352974765,1739470240367,-500.0,0.00013698,2]
[352974766,1739470240377,-712.2,0.00013698,2]
[352974768,1739470240386,-500.0,0.00013698,2]
[352974770,1739470240396,-629.88,0.00013698,2]
[352974772,1739470240405,-501.86459995,0.00013698,2]
[352974774,1739470240414,-402.18011074,0.00013698,2]
[352974776,1739470240423,-500.0,0.00013698,2]
[352974778,1739470240433,-512.7,0.00013698,2]
[352974780,1739470240442,-500.0,0.00013698,2]
[352974782,1739470240451,-1295.25,0.00013698,2]
[352974784,1739470240460,-504.64430673,0.00013698,2]
[352974786,1739470240470,-500.0,0.00013698,2]
[352974787,1739470240480,-500.0,0.00013698,2]
[352974790,1739470240490,-518.6156716,0.00013698,2]
[352974791,1739470240499,-785.63,0.00013698,2]
[352974793,1739470240508,-450.12313584,0.00013698,2]
[352974795,1739470240517,-1604.28,0.00013698,2]
[352974797,1739470240526,-774.42,0.00013698,2]
[352974799,1739470240535,-500.0,0.00013698,2]
[352974801,1739470240545,-1124.24,0.00013698,2]
[352974803,1739470240554,-500.0,0.00013698,2]
[352974805,1739470240563,-500.59075686,0.00013698,2]
[352974807,1739470240573,-544.33,0.00013698,2]
[352974809,1739470240582,-500.0,0.00013698,2]
[352974811,1739470240593,-503.00500572,0.00013698,2]
[352974813,1739470240602,-1353.37,0.00013698,2]
[352974815,1739470240611,-500.0,0.00013698,2]
[352974817,1739470240620,-500.0,0.00013698,2]
[352974819,1739470240629,-607.91,0.00013698,2]
[352974821,1739470240638,-500.0,0.00013698,2]
[352974823,1739470240647,-244.671988,0.00013698,2]
[352974825,1739470240657,-454.93333642,0.00013698,2]
[352974827,1739470240667,-244.671988,0.00013698,2]
[352974829,1739470240676,-244.671988,0.00013698,2]
[352974831,1739470240686,-621.50699706,0.00013698,2]
[352974833,1739470240696,-500.0,0.00013698,2]
[352974847,1739470240705,-884.92,0.00013698,2]
[352974850,1739470240844,-500.0,0.00013698,2]
[352974852,1739470240854,-622.01,0.00013698,2]
[352974854,1739470240866,-500.0,0.00013698,2]
[352974856,1739470240875,-1071.533926,0.00013698,2]
[352974858,1739470240884,-244.671988,0.00013698,2]
[352974860,1739470240893,-1071.533926,0.00013698,2]
[352974862,1739470240905,-244.671988,0.00013698,2]
[352974864,1739470240915,-244.671988,0.00013698,2]
[352974866,1739470240924,-1071.533926,0.00013698,2]
[352974868,1739470240934,-1753.82,0.00013698,2]
[352974870,1739470240945,-500.0,0.00013698,2]
[352974872,1739470240955,-500.0,0.00013698,2]
[352974874,1739470240964,-500.0,0.00013698,2]
[352974876,1739470240973,-718.74,0.00013698,2]
[352974878,1739470240983,-500.0,0.00013698,2]
[352974880,1739470240992,-500.0,0.00013698,2]
[352974882,1739470241001,-1071.533926,0.00013698,2]
[352974884,1739470241010,-1071.533926,0.00013698,2]
[352974886,1739470241020,-1695.24,0.00013698,2]
[352974888,1739470241029,-1071.533926,0.00013698,2]
[352974890,1739470241039,-500.0,0.00013698,2]
[352974892,1739470241048,-500.0,0.00013698,2]
[352974894,1739470241057,-1590.12,0.00013698,2]
[352974896,1739470241067,-500.0,0.00013698,2]
[352974898,1739470241076,-500.0,0.00013698,2]
[352974900,1739470241086,-500.0,0.00013698,2]
[352974902,1739470241095,-166.66970933,0.00013698,2]
[352974904,1739470241104,-500.0,0.00013698,2]
[352974906,1739470241114,-500.0,0.00013698,2]
[352974908,1739470241123,-1354.74,0.00013698,2]
[352974910,1739470241131,-704.84,0.00013698,2]
[352974912,1739470241141,-500.0,0.00013698,2]
[352974914,1739470241150,-503.04843873,0.00013698,2]
[352974916,1739470241160,-500.0,0.00013698,2]
[352974918,1739470241170,-500.0,0.00013698,2]
[352974920,1739470241179,-500.0,0.00013698,2]
[352974922,1739470241191,-1448.59,0.00013698,2]
[352974924,1739470241200,-500.0,0.00013698,2]
[352974926,1739470241209,-500.0,0.00013698,2]
[352974928,1739470241218,-1167.04,0.00013698,2]
[352974930,1739470241228,-502.00679634,0.00013698,2]
[352974932,1739470241237,-500.0,0.00013698,2]
[352974934,1739470241246,-500.0,0.00013698,2]
[352974936,1739470241255,-1329.1,0.00013698,2]
[352974938,1739470241265,-593.72,0.00013698,2]
[352974940,1739470241274,-500.0,0.00013698,2]
[352974942,1739470241284,-601.77,0.00013698,2]
[352974944,1739470241294,-500.0,0.00013698,2]
[352974946,1739470241303,-1295.31,0.00013698,2]
[352974947,1739470241312,-2580.63,0.00013698,2]
[352974950,1739470241322,-500.0,0.00013698,2]
[352974951,1739470241331,-500.0,0.00013698,2]
[352974953,1739470241340,-500.0,0.00013698,2]
[352974955,1739470241349,-525.42,0.00013698,2]
[352974957,1739470241358,-500.0,0.00013698,2]
[352974959,1739470241368,-500.0,0.00013698,2]
[352974961,1739470241377,-500.0,0.00013698,2]
[352974963,1739470241386,-500.0,0.00013698,2]
[352974965,1739470241395,-500.0,0.00013698,2]
[352974967,1739470241404,-151.0,0.00013698,2]
[352974969,1739470241414,-151.0,0.00013698,2]
[352974971,1739470241423,-151.0,0.00013698,2]
[352974973,1739470241433,-500.0,0.00013698,2]
[352974975,1739470241442,-932.37,0.00013698,2]
[352974977,1739470241451,-500.0,0.00013698,2]
[352974979,1739470241461,-500.0,0.00013698,2]
[352974981,1739470241471,-500.0,0.00013698,2]
[352974983,1739470241480,-642.64,0.00013698,2]
[352974985,1739470241490,-503.28535827,0.00013698,2]
[352974987,1739470241500,-1458.69,0.00013698,2]
[352974989,1739470241509,-1955.8,0.00013698,2]
[352974991,1739470241518,-1938.45,0.00013698,2]
[352974993,1739470241527,-500.0,0.00013698,2]
[352974995,1739470241537,-1344.29,0.00013698,2]
[352974997,1739470241546,-792.64,0.00013698,2]
[352974999,1739470241555,-500.0,0.00013698,2]
[352975001,1739470241565,-513.77,0.00013698,2]
[352975003,1739470241575,-2300.21,0.00013698,2]
[352975005,1739470241584,-1498.67,0.00013698,2]
[352975007,1739470241595,-500.0,0.00013698,2]
[352975009,1739470241605,-651.78,0.00013698,2]
[352975011,1739470241615,-500.0,0.00013698,2]
[352975012,1739470241624,-1308.67,0.00013698,2]
[352975013,1739470241634,-151.0,0.00013698,2]
[352975014,1739470241643,-151.0,0.00013698,2]
[352975015,1739470241652,-151.0,0.00013698,2]
[352975017,1739470241662,-500.0,0.00013698,2]